fUSD/lending_fUSD_20241119
["ID","MTS","AMOUNT","RATE_DAILY","PERIOD"]
[342582252,1731981034668,-764.54,9.997e-05,2]
[342582253,1731981034678,-500.0,9.997e-05,2]
[342582254,1731981034687,-500.0,9.997e-05,2]
[342582255,1731981034697,-500.0,9.997e-05,2]
[342582256,1731981034707,-500.0,9.997e-05,2]
[342582257,1731981034716,-500.0,9.997e-05,2]
[342582258,1731981034726,-385.00639499,9.997e-05,2]
[342582259,1731981034735,-516.04535237,9.997e-05,2]
[342582260,1731981034745,-500.0,9.997e-05,2]
[342582261,1731981034755,-504.23956177,9.997e-05,2]
[342582262,1731981034765,-500.0,9.997e-05,2]
[342582263,1731981034775,-500.0,9.997e-05,2]
[342582264,1731981034784,-500.0,9.997e-05,2]
[342582265,1731981034794,-639.39414915,9.997e-05,2]
[342582266,1731981034803,-523.84305864,9.997e-05,2]
[342582267,1731981034813,-504.85895142,9.997e-05,2]
[342582268,1731981034823,-500.0,9.997e-05,2]
[342582269,1731981034833,-486.01807156,9.997e-05,2]
[342582270,1731981034846,-500.0,9.997e-05,2]
[342582271,1731981034855,-500.0,9.997e-05,2]
[342582272,1731981034865,-155.73333439,9.997e-05,2]
[342582273,1731981034874,-500.0,9.997e-05,2]
[342582274,1731981034884,-500.0,9.997e-05,2]
[342582275,1731981034893,-500.0,9.997e-05,2]
[342582276,1731981034902,-500.0,9.997e-05,2]
[342582277,1731981034911,-500.0,9.998e-05,2]
[342582278,1731981034920,-500.0,9.998e-05,2]
[342582279,1731981034929,-504.50429364,9.998e-05,2]
[342582280,1731981034938,-500.0,9.998e-05,2]
[342582281,1731981034947,-500.0,9.998e-05,2]
[342582282,1731981034957,-500.0,9.998e-05,2]
[342582283,1731981034966,-500.0,9.998e-05,2]
[342582284,1731981034975,-500.0,9.998e-05,2]
[342582285,1731981034984,-500.0,9.998e-05,2]
[342582286,1731981034993,-500.0,9.998e-05,2]
[342582287,1731981035002,-500.0,9.998e-05,2]
[342582288,1731981035012,-503.95429808,9.998e-05,2]
[342582289,1731981035021,-500.0,9.998e-05,2]
[342582290,1731981035030,-500.0,9.998e-05,2]
[342582291,1731981035040,-501.54553384,9.998e-05,2]
[342582292,1731981035049,-500.0,9.998e-05,2]
[342582293,1731981035058,-239.43969164,9.998e-05,2]
[342582294,1731981035068,-764.54,9.998e-05,2]
[342582295,1731981035077,-500.0,9.998e-05,2]
[342582296,1731981035087,-535.60234261,9.998e-05,2]
[342582297,1731981035314,-500.0,9.998e-05,2]
[342582298,1731981035324,-585.63089592,9.998e-05,2]
[342582299,1731981035334,-503.88863218,9.998e-05,2]
[342582300,1731981035346,-500.0,9.998e-05,2]
[342582301,1731981035356,-507.28591553,9.998e-05,2]
[342582302,1731981035366,-500.0,9.998e-05,2]
[342582303,1731981035375,-229.16712361,9.998e-05,2]
[342582304,1731981035384,-505.21271175,9.998e-05,2]
[342582305,1731981035393,-500.0,9.998e-05,2]
[342582306,1731981035403,-500.0,9.998e-05,2]
[342582307,1731981035412,-500.0,9.998e-05,2]
[342582308,1731981035422,-500.0,9.998e-05,2]
[342582309,1731981035437,-557.19671692,9.998e-05,2]
[342582310,1731981035448,-503.56652803,9.998e-05,2]
[342582311,1731981035458,-500.0,9.998e-05,2]
[342582312,1731981035467,-500.0,9.998e-05,2]
[342582313,1731981035476,-500.0,9.998e-05,2]
[342582314,1731981035486,-500.0,9.998e-05,2]
[342582315,1731981035496,-500.0,9.998e-05,2]
[342582316,1731981035507,-500.0,9.998e-05,2]
[342582317,1731981035519,-162.57424646,9.998e-05,2]
[342582318,1731981035529,-544.43421887,9.998e-05,2]
[342582319,1731981035538,-500.0,9.998e-05,2]
[342582320,1731981035548,-345.13631946,9.998e-05,2]
[342582321,1731981035558,-333.72428722,9.998e-05,2]
[342582322,1731981035567,-636.8886667,9.998e-05,2]
[342582323,1731981035576,-300.5902587,9.998e-05,2]
[342582324,1731981035585,-688.41,9.998e-05,2]
[342582325,1731981035599,-500.0,9.998e-05,2]
[342582326,1731981035608,-500.0,9.998e-05,2]
[342582327,1731981035618,-500.0,9.998e-05,2]
[342582328,1731981035628,-500.0,9.998e-05,2]
[342582329,1731981035637,-375.54902128,9.998e-05,2]
[342582330,1731981035647,-500.0,9.998e-05,2]
[342582331,1731981035656,-541.04386978,9.998e-05,2]
[342582332,1731981035665,-507.73,9.998e-05,2]
[342582333,1731981035675,-15839.07,9.999e-05,2]
[342582334,1731981035684,-260.55802009,9.999e-05,2]
[342582335,1731981035693,-500.0,9.999e-05,2]
[342582336,1731981035703,-493.61362348,9.999e-05,2]
[342582337,1731981035713,-500.0,9.999e-05,2]
[342582338,1731981035722,-500.0,9.999e-05,2]
[342582339,1731981035731,-500.0,9.999e-05,2]
[342582340,1731981035741,-500.0,9.999e-05,2]
[342582341,1731981035750,-500.0,9.999e-05,2]
[342582342,1731981035759,-500.0,9.999e-05,2]
[342582343,1731981035768,-500.0,9.999e-05,2]
[342582344,1731981035777,-500.0,9.999e-05,2]
[342582345,1731981035787,-500.0,9.999e-05,2]
[342582346,1731981035795,-500.0,9.999e-05,2]
[342582347,1731981035804,-500.0,9.999e-05,2]
[342582348,1731981035814,-500.0,9.999e-05,2]
[342582349,1731981035824,-500.0,9.999e-05,2]
[342582350,1731981035834,-500.0,9.999e-05,2]
[342582351,1731981035846,-500.0,9.999e-05,2]
[342582352,1731981035855,-500.0,9.999e-05,2]
[342582353,1731981035864,-500.0,9.999e-05,2]
[342582354,1731981035874,-500.0,9.999e-05,2]
[342582355,1731981035883,-496.917974,9.999e-05,2]
[342582356,1731981035892,-500.0,9.999e-05,2]
[342582357,1731981035902,-500.0,9.999e-05,2]
[342582358,1731981035911,-500.0,9.999e-05,2]
[342582359,1731981035920,-500.0,9.999e-05,2]
[342582360,1731981035929,-500.0,9.999e-05,2]
[342582361,1731981035939,-500.0,9.999e-05,2]
[342582362,1731981035948,-270.58498974,9.999e-05,2]
[342582363,1731981035959,-500.0,9.999e-05,2]
[342582364,1731981035967,-500.0,9.999e-05,2]
[342582365,1731981035977,-500.0,9.999e-05,2]
[342582366,1731981035986,-500.0,9.999e-05,2]
[342582367,1731981035995,-500.0,9.999e-05,2]
[342582368,1731981036004,-500.0,9.999e-05,2]
[342582369,1731981036014,-500.0,9.999e-05,2]
[342582370,1731981036024,-500.0,9.999e-05,2]
[342582371,1731981036033,-152.23519934,9.999e-05,2]
[342582372,1731981036042,-500.0,9.999e-05,2]
[342582373,1731981036051,-500.0,9.999e-05,2]
[342582374,1731981036061,-500.0,9.999e-05,2]
[342582375,1731981036070,-500.0,9.999e-05,2]
[342582376,1731981036079,-500.0,9.999e-05,2]
[342582377,1731981036088,-500.0,9.999e-05,2]
[342582378,1731981036099,-500.0,9.999e-05,2]
[342582379,1731981036109,-178.27009993,9.999e-05,2]
[342582380,1731981036118,-482.10811248,9.999e-05,2]
[342582381,1731981036127,-500.0,9.999e-05,2]
[342582382,1731981036136,-500.0,9.999e-05,2]
[342582383,1731981036145,-500.0,9.999e-05,2]
[342582384,1731981036154,-500.0,9.999e-05,2]
[342582385,1731981036163,-500.0,9.999e-05,2]
[342582386,1731981036172,-500.0,9.999e-05,2]
[342582387,1731981036181,-500.0,9.999e-05,2]
[342582388,1731981036190,-500.0,9.999e-05,2]
[342582389,1731981036199,-500.0,9.999e-05,2]
[342582390,1731981036207,-500.0,9.999e-05,2]
[342582391,1731981036217,-500.0,9.999e-05,2]
[342582392,1731981036226,-500.0,9.999e-05,2]
[342582393,1731981036235,-500.0,9.999e-05,2]
[342582394,1731981036244,-500.0,9.999e-05,2]
[342582395,1731981036253,-500.0,9.999e-05,2]
[342582396,1731981036262,-500.0,9.999e-05,2]
[342582397,1731981036271,-500.0,9.999e-05,2]
[342582398,1731981036280,-500.0,9.999e-05,2]
[342582399,1731981036289,-564.69574929,9.999e-05,2]
[342582400,1731981036298,-523.07397869,9.999e-05,2]
[342582401,1731981036307,-502.85856034,9.999e-05,2]
[342582402,1731981036316,-500.0,9.999e-05,2]
[342582403,1731981036326,-539.62991405,9.999e-05,2]
[342582404,1731981036335,-500.0,9.999e-05,2]
[342582405,1731981036346,-500.0,9.999e-05,2]
[342582406,1731981036355,-500.0,9.999e-05,2]
[342582407,1731981036364,-500.0,9.999e-05,2]
[342582408,1731981036373,-500.0,9.999e-05,2]
[342582409,1731981036382,-500.0,9.999e-05,2]
[342582410,1731981036391,-500.0,9.999e-05,2]
[342582411,1731981036401,-500.0,9.999e-05,2]
[342582412,1731981036410,-479.54413317,9.999e-05,2]
[342582413,1731981036419,-500.0,9.999e-05,2]
[342582414,1731981036431,-500.0,9.999e-05,2]
[342582415,1731981036440,-500.0,9.999e-05,2]
[342582416,1731981036449,-500.0,9.999e-05,2]
[342582417,1731981036458,-500.0,9.999e-05,2]
[342582418,1731981036467,-500.0,9.999e-05,2]
[342582419,1731981036478,-500.0,9.999e-05,2]
[342582420,1731981036486,-500.0,9.999e-05,2]
[342582421,1731981036495,-177.00317269,9.999e-05,2]
[342582422,1731981036506,-764.54,9.999e-05,2]
[342582423,1731981036515,-764.54,9.999e-05,2]
[342582424,1731981036524,-764.54,9.999e-05,2]
[342582425,1731981036533,-764.54,9.999e-05,2]
[342582426,1731981036542,-764.54,9.999e-05,2]
[342582427,1731981036551,-764.54,9.999e-05,2]
[342582428,1731981036560,-764.54,9.999e-05,2]
[342582429,1731981036569,-764.54,9.999e-05,2]
[342582430,1731981036578,-764.54,9.999e-05,2]
[342582431,1731981036587,-764.54,9.999e-05,2]
[342582432,1731981036598,-764.54,9.999e-05,2]
[342582433,1731981036607,-764.54,9.999e-05,2]
[342582434,1731981036615,-764.54,9.999e-05,2]
[342582435,1731981036625,-500.0,9.999e-05,2]
[342582436,1731981036634,-764.54,9.999e-05,2]
[342582437,1731981036643,-500.0,9.999e-05,2]
[342582438,1731981036651,-764.54,9.999e-05,2]
[342582439,1731981036660,-503.08091526,9.999e-05,2]
[342582440,1731981036669,-764.54,9.999e-05,2]
[342582441,1731981036678,-764.54,9.999e-05,2]
[342582442,1731981036687,-764.54,9.999e-05,2]
[342582443,1731981036696,-764.54,9.999e-05,2]
[342582444,1731981036705,-764.54,9.999e-05,2]
[342582445,1731981036715,-764.71830083,9.999e-05,2]
[342582446,1731981036723,-500.0,9.999e-05,2]
[342582447,1731981036732,-503.8454482,9.999e-05,2]
[342582448,1731981036742,-500.0,9.999e-05,2]
[342582449,1731981036751,-500.0,9.999e-05,2]
[342582450,1731981036760,-500.0,9.999e-05,2]
[342582451,1731981036769,-500.0,9.999e-05,2]
[342582452,1731981036778,-500.0,9.999e-05,2]
[342582453,1731981036787,-500.0,9.999e-05,2]
[342582454,1731981036796,-589.28623918,9.999e-05,2]
[342582455,1731981036805,-500.0,9.999e-05,2]
[342582456,1731981036815,-500.0,9.999e-05,2]
[342582457,1731981036824,-500.0,9.999e-05,2]
[342582458,1731981036834,-500.0,9.999e-05,2]
[342582459,1731981036843,-500.0,9.999e-05,2]
[342582460,1731981036852,-500.0,9.999e-05,2]
[342582461,1731981036862,-500.0,9.999e-05,2]
[342582462,1731981036871,-500.0,9.999e-05,2]
[342582463,1731981036880,-539.46875906,9.999e-05,2]
[342582464,1731981036889,-500.0,9.999e-05,2]
[342582465,1731981036899,-500.0,9.999e-05,2]
[342582466,1731981036908,-500.0,9.999e-05,2]
[342582467,1731981036917,-505.2969663,9.999e-05,2]
[342582468,1731981036927,-191.81,9.999e-05,2]
[342582469,1731981036936,-500.0,9.999e-05,2]
[342582470,1731981036945,-500.0,9.999e-05,2]
[342582471,1731981036954,-500.0,9.999e-05,2]
[342582472,1731981036964,-500.0,9.999e-05,2]
[342582473,1731981036973,-500.0,9.999e-05,2]
[342582474,1731981036982,-500.0,9.999e-05,2]
[342582475,1731981036991,-500.0,9.999e-05,2]
[342582476,1731981036999,-500.0,9.999e-05,2]
[342582477,1731981037008,-500.0,9.999e-05,2]
[342582478,1731981037017,-500.0,9.999e-05,2]
[342582479,1731981037026,-500.0,9.999e-05,2]
[342582480,1731981037034,-500.0,9.999e-05,2]
[342582481,1731981037043,-263.79142342,9.999e-05,2]
[342582482,1731981037052,-436.35302402,9.999e-05,2]
[342582483,1731981037061,-514.84839952,9.999e-05,2]
[342582484,1731981037070,-402.83380397,9.999e-05,2]
[342582485,1731981037079,-500.0,9.999e-05,2]
[342582486,1731981037088,-500.0,9.999e-05,2]
[342582487,1731981037099,-500.0,9.999e-05,2]
[342582488,1731981037108,-500.0,9.999e-05,2]
[342582489,1731981037118,-500.0,9.999e-05,2]
[342582490,1731981037127,-500.0,9.999e-05,2]
[342582491,1731981037136,-356.40772633,9.999e-05,2]
[342582492,1731981037145,-506.35141247,9.999e-05,2]
[342582493,1731981037154,-729.21,9.999e-05,2]
[342582494,1731981037163,-587.65091318,9.999e-05,2]
[342582495,1731981037172,-729.21,9.999e-05,2]
[342582496,1731981037181,-729.21,9.999e-05,2]
[342582497,1731981037191,-729.21,9.999e-05,2]
[342582498,1731981037200,-729.21,9.999e-05,2]
[342582499,1731981037209,-729.21,9.999e-05,2]
[342582500,1731981037218,-729.21,9.999e-05,2]
[342582501,1731981037227,-729.21,9.999e-05,2]
[342582502,1731981037236,-729.21,9.999e-05,2]
[342582503,1731981037245,-729.21,9.999e-05,2]
[342582504,1731981037255,-729.21,9.999e-05,2]
[342582505,1731981037263,-729.21,9.999e-05,2]
[342582506,1731981037272,-729.21,9.999e-05,2]
[342582507,1731981037282,-729.21,9.999e-05,2]
[342582508,1731981037291,-729.21,9.999e-05,2]
[342582509,1731981037300,-729.21,9.999e-05,2]
[342582510,1731981037309,-729.21,9.999e-05,2]
[342582511,1731981037318,-729.21,9.999e-05,2]
[342582512,1731981037327,-729.21,9.999e-05,2]
[342582513,1731981037337,-729.21,9.999e-05,2]
[342582514,1731981037349,-729.21,9.999e-05,2]
[342582515,1731981037358,-729.21,9.999e-05,2]
[342582516,1731981037367,-729.38566592,9.999e-05,2]
[342582517,1731981037376,-500.0,9.999e-05,2]
[342582518,1731981037386,-500.0,9.999e-05,2]
[342582519,1731981037395,-546.09157822,9.999e-05,2]
[342582520,1731981037405,-500.0,9.999e-05,2]
[342582521,1731981037414,-294.49794738,9.999e-05,2]
[342582522,1731981037424,-500.0,9.999e-05,2]
[342582523,1731981037435,-500.0,9.999e-05,2]
[342582524,1731981037445,-500.0,9.999e-05,2]
[342582525,1731981037455,-500.0,9.999e-05,2]
[342582526,1731981037464,-641.01782027,9.999e-05,2]
[342582527,1731981037475,-504.42486053,9.999e-05,2]
[342582528,1731981037485,-500.0,9.999e-05,2]
[342582529,1731981037494,-172.40407859,9.999e-05,2]
[342582530,1731981037506,-500.0,9.999e-05,2]
[342582531,1731981037517,-424.82342834,9.999e-05,2]
[342582532,1731981037526,-369.77091495,9.999e-05,2]
[342582533,1731981037536,-500.0,9.999e-05,2]
[342582534,1731981037546,-500.0,9.999e-05,2]
[342582535,1731981037554,-500.0,9.999e-05,2]
[342582536,1731981037563,-514.12438018,9.999e-05,2]
[342582537,1731981037572,-546.17506703,9.999e-05,2]
[342582538,1731981037582,-500.0,9.999e-05,2]
[342582539,1731981037594,-500.0,9.999e-05,2]
[342582540,1731981037604,-500.0,9.999e-05,2]
[342582541,1731981037613,-281.32045172,9.999e-05,2]
[342582542,1731981037623,-500.0,9.999e-05,2]
[342582543,1731981037632,-500.0,9.999e-05,2]
[342582544,1731981037641,-500.0,9.999e-05,2]
[342582545,1731981037651,-484.48355379,9.999e-05,2]
[342582546,1731981037660,-500.0,9.999e-05,2]
[342582547,1731981037671,-500.0,9.999e-05,2]
[342582548,1731981037680,-500.0,9.999e-05,2]
[342582549,1731981037689,-500.0,9.999e-05,2]
[342582550,1731981037698,-500.0,9.999e-05,2]
[342582551,1731981037707,-253.7685988,9.999e-05,2]
[342582552,1731981037716,-500.0,9.999e-05,2]
[342582553,1731981037725,-500.0,9.999e-05,2]
[342582554,1731981037735,-500.0,9.999e-05,2]
[342582555,1731981037745,-500.0,9.999e-05,2]
[342582556,1731981037755,-500.0,9.999e-05,2]
[342582557,1731981037764,-500.0,9.999e-05,2]
[342582558,1731981037773,-500.0,9.999e-05,2]
[342582559,1731981037783,-500.0,9.999e-05,2]
[342582560,1731981037792,-367.37843897,9.999e-05,2]
[342582561,1731981037801,-506.98748925,9.999e-05,2]
[342582562,1731981037810,-502.78186393,9.999e-05,2]
[342582563,1731981037820,-325.28239369,9.999e-05,2]
[342582564,1731981037829,-688.41,9.999e-05,2]
[342582565,1731981037838,-688.41,9.999e-05,2]
[342582566,1731981037850,-688.41,9.999e-05,2]
[342582567,1731981037859,-688.41,9.999e-05,2]
[342582568,1731981037868,-688.41,9.999e-05,2]
[342582569,1731981037877,-688.41,9.999e-05,2]
[342582570,1731981037887,-688.41,9.999e-05,2]
[342582571,1731981037896,-688.41,9.999e-05,2]
[342582572,1731981037905,-688.41,9.999e-05,2]
[342582573,1731981037914,-688.41,9.999e-05,2]
[342582574,1731981037924,-688.41,9.999e-05,2]
[342582575,1731981037934,-688.41,9.999e-05,2]
[342582576,1731981037943,-688.41,9.999e-05,2]
[342582577,1731981037952,-688.41,9.999e-05,2]
[342582578,1731981037962,-688.41,9.999e-05,2]
[342582579,1731981037971,-688.41,9.999e-05,2]
[342582580,1731981037980,-688.41,9.999e-05,2]
[342582581,1731981037990,-688.41,9.999e-05,2]
[342582582,1731981037999,-688.41,9.999e-05,2]
[342582583,1731981038008,-688.41,9.999e-05,2]
[342582584,1731981038017,-688.41,9.999e-05,2]
[342582585,1731981038026,-688.60209847,9.999e-05,2]
[342582586,1731981038035,-500.0,9.999e-05,2]
[342582587,1731981038044,-503.79445129,9.999e-05,2]
[342582588,1731981038054,-416.57623538,9.999e-05,2]
[342582589,1731981038064,-182.63791377,9.999e-05,2]
[342582590,1731981038074,-500.0,9.999e-05,2]
[342582591,1731981038084,-500.0,9.999e-05,2]
[342582592,1731981038095,-500.0,9.999e-05,2]
[342582593,1731981038104,-500.0,9.999e-05,2]
[342582594,1731981038114,-500.0,9.999e-05,2]
[342582595,1731981038123,-500.0,9.999e-05,2]
[342582596,1731981038132,-500.0,9.999e-05,2]
[342582597,1731981038141,-344.40657754,9.999e-05,2]
[342582598,1731981038151,-627.00964382,9.999e-05,2]
[342582599,1731981038161,-390.68963069,9.999e-05,2]
[342582600,1731981038170,-507.73,9.999e-05,2]
[342582601,1731981038180,-507.73,9.999e-05,2]
[342582602,1731981038189,-507.73,9.999e-05,2]
[342582603,1731981038198,-507.73,9.999e-05,2]
[342582604,1731981038207,-507.73,9.999e-05,2]
[342582605,1731981038217,-507.73,9.999e-05,2]
[342582606,1731981038227,-507.73,9.999e-05,2]
[342582607,1731981038237,-507.73,9.999e-05,2]
[342582608,1731981038246,-507.73,9.999e-05,2]
[342582609,1731981038256,-507.73,9.999e-05,2]
[342582610,1731981038265,-507.73,9.999e-05,2]
[342582611,1731981038274,-507.73,9.999e-05,2]
[342582612,1731981038283,-507.73,9.999e-05,2]
[342582613,1731981038293,-507.73,9.999e-05,2]
[342582614,1731981038303,-507.73,9.999e-05,2]
[342582615,1731981038314,-507.73,9.999e-05,2]
[342582616,1731981038323,-507.73,9.999e-05,2]
[342582617,1731981038332,-507.73,9.999e-05,2]
[342582618,1731981038341,-507.73,9.999e-05,2]
[342582619,1731981038352,-507.73,9.999e-05,2]
[342582620,1731981038361,-507.73,9.999e-05,2]
[342582622,1731981038371,-507.85465415,9.999e-05,2]
[342582623,1731981038381,-6577.88670508,0.0001,2]
[342582624,1731981038392,-273833.37068516,0.0001,2]
[342582625,1731981038401,-1402.0888025,0.0001,2]
[342582626,1731981038412,-1402.08880243,0.0001,2]
[342582627,1731981038424,-1402.08880243,0.0001,2]
[342582628,1731981038434,-1402.08880243,0.0001,2]
[342582629,1731981038443,-1402.08880243,0.0001,2]
[342582630,1731981038452,-1402.08880243,0.0001,2]
[342582631,1731981038463,-1402.08880243,0.0001,2]
[342582632,1731981038472,-5334.27624961,0.0001,2]
[342582633,1731981038785,-2574.86602488,0.0001,2]
[342582634,1731981038798,-7400.0,0.0001,2]
[342582635,1731981038812,-1368.41265946,0.0001,2]
[342582636,1731981038825,-7933.5579185,0.0001,2]
[342582637,1731981038860,-1500.53258385,0.0001,2]
[342582638,1731981038872,-5622.03985906,0.0001,2]
[342582639,1731981038886,-1102.89243099,0.0001,2]
[342582651,1731981039155,-1402.08880243,0.0001,2]
[342582653,1731981039167,-1402.08880243,0.0001,2]
[342582655,1731981039177,-2488.93273099,0.0001,2]
[342582659,1731981039245,-1792882.10873808,0.0001,2]
[342582660,1731981039260,-226821.25013557,0.0001,2]
[342582661,1731981039272,-3602.50878093,0.0001,2]
[342582662,1731981039286,-1680.61684193,0.0001,2]
[342582663,1731981039311,-6191483.25014748,0.0001,2]
[342582749,1731981043627,-2989.61076992,0.0001,2]
[342582750,1731981043640,-1912.71348188,0.0001,2]
[342582751,1731981043652,-14196.44137861,0.0001,2]
[342582752,1731981043665,-6895.01239078,0.0001,2]
[342582753,1731981043677,-1432.30532102,0.0001,2]
[342582761,1731981046656,-500.0,9.987e-05,2]
[342582762,1731981046667,-1942.1624042,9.993e-05,2]
[342582764,1731981046678,-500.0,9.998e-05,2]
[342582765,1731981046689,-260.55802009,9.999e-05,2]
[342582766,1731981046699,-500.0,9.999e-05,2]
[342582767,1731981046709,-500.0,9.999e-05,2]
[342582768,1731981046719,-500.0,9.999e-05,2]
[342582769,1731981046731,-308.15815115,0.0001,2]
[342582770,1731981046743,-8966.06194617,0.0001,2]
[342582771,1731981046756,-15409.26312,0.0001,2]
[342582772,1731981046769,-63749.0851419,0.0001,2]
[342582773,1731981046795,-2364.3995724,0.0001,2]
[342582776,1731981158806,167.81675308,0.00023,120]
[342582782,1731981766282,263.05,8.219e-05,2]
[342582812,1731982224039,10000.0,8.5e-05,2]
[342582818,1731982231561,-539.85004002,8.903e-05,2]
[342582819,1731982231571,-483.67700998,8.903e-05,2]
[342582820,1731982231774,-4141.97488189,8.903e-05,2]
[342582821,1731982231785,-2383.70808601,8.903e-05,2]
[342582822,1731982231797,-1669.17885113,8.903e-05,2]
[342582823,1731982231809,-314.30380165,8.903e-05,2]
[342582824,1731982231823,-309.75,8.903e-05,2]
[342582825,1731982231991,-14597.40736934,8.903e-05,2]
[342582827,1731982231999,-1000.0,8.903e-05,2]
[342582829,1731982232008,-150.0,8.922e-05,2]
[342582831,1731982232018,-9336.11,8.923e-05,2]
[342582833,1731982232027,-400.0,8.952e-05,2]
[342582835,1731982232037,-150.6881828,9e-05,2]
[342582836,1731982232046,-250.0,9.085e-05,2]
[342582837,1731982232055,-306.0,9.226e-05,2]
[342582838,1731982232065,-165.36,9.45e-05,2]
[342582839,1731982232074,-581.981305,9.563e-05,2]
[342582840,1731982232083,-200.54087344,9.6e-05,2]
[342582841,1731982232092,-200.37487559,9.6e-05,2]
[342582842,1731982232102,-692.406,9.616e-05,2]
[342582843,1731982232111,-1240.4,9.67e-05,2]
[342582844,1731982232120,-5748.88,9.67e-05,2]
[342582845,1731982232130,-581.981305,9.683e-05,2]
[342582846,1731982232138,-150.0,9.783e-05,2]
[342582847,1731982232149,-578.6667,9.799e-05,2]
[342582848,1731982232159,-164.2103,9.8e-05,2]
[342582849,1731982232168,-4511.4886,9.8e-05,2]
[342582850,1731982232178,-10408.2945,9.8e-05,2]
[342582851,1731982232187,-581.981305,9.802e-05,2]
[342582852,1731982232196,-255.0,9.814e-05,2]
[342582853,1731982232205,-5958.939,9.822e-05,2]
[342582854,1731982232215,-151.039,9.822e-05,2]
[342582855,1731982232225,-406.327,9.822e-05,2]
[342582856,1731982232235,-5407.981,9.822e-05,2]
[342582857,1731982232244,-1096.7,9.822e-05,2]
[342582858,1731982232255,-812.3627,9.899e-05,2]
[342582859,1731982232264,-2005.8955,9.9e-05,2]
[342582860,1731982232274,-1003.0,9.9e-05,2]
[342582861,1731982232284,-581.981305,9.922e-05,2]
[342582862,1731982232293,-160.45395641,9.973e-05,2]
[342582863,1731982232303,-500.0,9.973e-05,2]
[342582864,1731982232312,-623.44582245,9.987e-05,2]
[342582865,1731982232321,-500.0,9.987e-05,2]
[342582866,1731982232331,-500.0,9.988e-05,2]
[342582867,1731982232341,-500.0,9.988e-05,2]
[342582868,1731982232350,-500.0,9.988e-05,2]
[342582869,1731982232359,-501.55008691,9.988e-05,2]
[342582870,1731982232369,-502.76999925,9.988e-05,2]
[342582871,1731982232377,-500.0,9.988e-05,2]
[342582872,1731982232386,-500.0,9.988e-05,2]
[342582873,1731982232397,-247.90002984,9.988e-05,2]
[342582874,1731982232406,-502.56417733,9.988e-05,2]
[342582875,1731982232415,-507.25532507,9.988e-05,2]
[342582876,1731982232424,-500.0,9.988e-05,2]
[342582877,1731982232433,-500.0,9.988e-05,2]
[342582878,1731982232442,-500.0,9.988e-05,2]
[342582879,1731982232451,-500.0,9.988e-05,2]
[342582880,1731982232460,-500.0,9.988e-05,2]
[342582881,1731982232469,-500.0,9.988e-05,2]
[342582882,1731982232478,-500.0,9.988e-05,2]
[342582883,1731982232489,-500.0,9.988e-05,2]
[342582884,1731982232498,-500.0,9.988e-05,2]
[342582885,1731982232507,-500.0,9.988e-05,2]
[342582886,1731982232516,-502.77477339,9.988e-05,2]
[342582887,1731982232525,-500.0,9.988e-05,2]
[342582888,1731982232535,-500.25336825,9.988e-05,2]
[342582889,1731982232544,-500.47976298,9.988e-05,2]
[342582890,1731982232557,-500.0,9.988e-05,2]
[342582891,1731982232568,-503.53848049,9.988e-05,2]
[342582892,1731982232579,-501.2512157,9.988e-05,2]
[342582893,1731982232591,-159.54262321,9.988e-05,2]
[342582894,1731982232602,-500.0,9.988e-05,2]
[342582895,1731982232613,-501.13190524,9.988e-05,2]
[342582896,1731982232624,-506.07225225,9.988e-05,2]
[342582897,1731982232636,-504.1978488,9.988e-05,2]
[342582898,1731982232647,-500.0,9.988e-05,2]
[342582899,1731982232656,-610.99883633,9.988e-05,2]
[342582900,1731982232666,-509.00874498,9.988e-05,2]
[342582901,1731982232676,-500.0,9.988e-05,2]
[342582902,1731982232687,-501.11543186,9.988e-05,2]
[342582903,1731982232698,-150.0,9.988e-05,2]
[342582904,1731982232709,-500.0,9.988e-05,2]
[342582905,1731982232721,-500.0,9.988e-05,2]
[342582906,1731982232732,-567.21467466,9.988e-05,2]
[342582907,1731982232743,-500.0,9.988e-05,2]